fUSD/lending_fUSD_20250101
["ID","MTS","AMOUNT","RATE_DAILY","PERIOD"]
[347356394,1735727435073,-5123.45,0.0001099,2]
[347356395,1735727435082,-1827.07,0.0001099,2]
[347356396,1735727435091,-3105.66,0.0001099,2]
[347356397,1735727435100,-1300.01040549,0.0001099,2]
[347356398,1735727435111,-1544.37166,0.0001099,2]
[347356399,1735727435122,-2661.31793451,0.0001099,2]
[347356400,1735727435131,-3105.66,0.0001099,2]
[347356401,1735727435141,-500.0,0.0001099,2]
[347356402,1735727435150,-1499.5,0.0001099,2]
[347356403,1735727435159,-2182.59,0.0001099,2]
[347356404,1735727435169,-500.0,0.0001099,2]
[347356405,1735727435178,-500.0,0.0001099,2]
[347356406,1735727435187,-808.25,0.0001099,2]
[347356407,1735727435196,-345.97877456,0.0001099,2]
[347356408,1735727435207,-2509.19,0.0001099,2]
[347356409,1735727435217,-2657.14,0.0001099,2]
[347356410,1735727435226,-1601.23,0.0001099,2]
[347356411,1735727435235,-11069.65,0.0001099,2]
[347356412,1735727435246,-500.0,0.0001099,2]
[347356413,1735727435259,-500.0,0.0001099,2]
[347356414,1735727435269,-500.0,0.0001099,2]
[347356415,1735727435279,-1301.21,0.0001099,2]
[347356416,1735727435288,-238.77866715,0.0001099,2]
[347356417,1735727435298,-2927.33,0.0001099,2]
[347356418,1735727435307,-1556.255553,0.0001099,2]
[347356419,1735727435318,-13486.74,0.0001099,2]
[347356420,1735727435329,-2811.88,0.0001099,2]
[347356421,1735727435338,-3268.57,0.0001099,2]
[347356422,1735727435347,-155.490194,0.0001099,2]
[347356423,1735727435356,-500.0,0.0001099,2]
[347356424,1735727435366,-2368.04,0.0001099,2]
[347356425,1735727435376,-500.0,0.0001099,2]
[347356426,1735727435385,-2159.11,0.0001099,2]
[347356427,1735727435394,-6919.48,0.0001099,2]
[347356428,1735727435403,-500.0,0.0001099,2]
[347356429,1735727435412,-2229.80161666,0.0001099,2]
[347356430,1735727435423,-309.00838334,0.0001099,2]
[347356431,1735727435433,-1943.852657,0.0001099,2]
[347356432,1735727435442,-500.0,0.0001099,2]
[347356433,1735727435451,-2106.78,0.0001099,2]
[347356434,1735727435460,-500.0,0.0001099,2]
[347356435,1735727435476,-4521.24,0.0001099,2]
[347356436,1735727435499,-500.0,0.0001099,2]
[347356437,1735727435520,-3089.88,0.0001099,2]
[347356438,1735727435543,-3263.59,0.0001099,2]
[347356439,1735727435566,-13328.49,0.0001099,2]
[347356440,1735727435589,-567.59924121,0.0001099,2]
[347356441,1735727435611,-1923.05,0.0001099,2]
[347356442,1735727435634,-319.54606919,0.0001099,2]
[347356443,1735727435657,-83.54186307,0.0001099,2]
[347356449,1735727438246,-529.55641946,0.00010914,2]
[347356451,1735727438259,-121.69353954,0.0001099,2]
[347356453,1735727438271,-1736.10459739,0.0001099,2]
[347356455,1735727438281,-578.32450833,0.0001099,2]
[347356457,1735727438303,-900.62549167,0.0001099,2]
[347356458,1735727438312,-500.0,0.0001099,2]
[347356459,1735727438321,-303.10441626,0.0001099,2]
[347356460,1735727438388,-2170.16359181,0.0001099,2]
[347356461,1735727438400,-7416.95199193,0.0001099,2]
[347356462,1735727438410,-500.0,0.0001099,2]
[347356463,1735727438420,-834.55,0.0001099,2]
[347356464,1735727438430,-500.0,0.0001099,2]
[347356465,1735727438439,-1408.40898307,0.0001099,2]
[347356466,1735727438506,-3365.53101693,0.0001099,2]
[347356467,1735727438516,-1794.85948307,0.0001099,2]
[347356468,1735727438527,-332.35051693,0.0001099,2]
[347356469,1735727438537,-39.8773894,0.0001099,2]
[347356470,1735727438548,-384.359608,0.0001099,2]
[347356474,1735727440430,-420.0,0.00010989,2]
[347356475,1735727440442,-287.41323734,0.00010989,2]
[347356476,1735727440642,-421.55676266,0.00010989,2]
[347356478,1735727440652,-1615.28,0.00010989,2]
[347356479,1735727440662,-624.4830026,0.0001099,2]
[347356480,1735727440671,-199.078311,0.0001099,2]
[347356481,1735727440681,-171.73755645,0.0001099,2]
[347356482,1735727440690,-500.0,0.0001099,2]
[347356483,1735727440703,-98846.63627025,0.00010991,2]
[347356529,1735727443494,-500.0,0.00010989,2]
[347356530,1735727443510,-372.62999952,0.00010989,2]
[347356531,1735727443693,-127.37000048,0.00010989,2]
[347356532,1735727443703,-639.98,0.00010989,2]
[347356533,1735727443712,-476.20491716,0.00010991,2]
[347356542,1735727446733,-2515.19,0.0001099,2]
[347356543,1735727446743,-500.0,0.0001099,2]
[347356544,1735727446752,-13095.11283113,0.00010991,2]
[347356546,1735727630439,362.14,8.219e-05,2]
[347356547,1735727791740,1000.0,0.0001712,59]
[347356550,1735728632011,-150.0,9.912e-05,2]
[347356551,1735728632021,-150.0,9.912e-05,2]
[347356552,1735728632030,-150.0,9.912e-05,2]
[347356553,1735728632040,-181.1,9.939e-05,2]
[347356554,1735728632049,-1000.0,9.958e-05,2]
[347356556,1735728632059,-250.0,9.995e-05,2]
[347356558,1735728632068,-392.31,9.999e-05,2]
[347356598,1735728632375,-18.1367,0.00010008,2]
[347356600,1735728632388,-380.67764052,0.00010008,2]
[347356606,1735728632437,-90.22565948,0.00010008,2]
[347356608,1735728632446,-151.24,0.00010008,2]
[347356610,1735728632455,-250.0,0.00010071,2]
[347356612,1735728632465,-287.31,0.00010137,2]
[347356614,1735728632474,-61.22434052,0.00010137,2]
[347356619,1735728632513,-148.81565948,0.00010137,2]
[347356620,1735728632522,-157.994,0.0001047,2]
[347356621,1735728632531,-362.14,0.00010476,2]
[347356622,1735728632540,-1000.0,0.00010575,2]
[347356623,1735728632549,-500.0,0.00010575,2]
[347356624,1735728632558,-502.73,0.00010575,2]
[347356625,1735728632567,-499.03,0.00010575,2]
[347356626,1735728632575,-157.87620109,0.000108,2]
[347356627,1735728632584,-39682.21126943,0.00010875,2]
[347356628,1735728632595,-16085.0,0.00010875,2]
[347356629,1735728632605,-6290.0000001,0.00010875,2]
[347356630,1735728632616,-5880.0,0.00010875,2]
[347356631,1735728632627,-1360.0,0.00010875,2]
[347356632,1735728632669,-913.69201249,0.00010875,2]
[347356633,1735728632681,-280766.90544847,0.00010875,2]
[347356634,1735728632690,-1455783.18558937,0.0001088,2]
[347356635,1735728632701,-6948.10947444,0.0001088,2]
[347356636,1735728632712,-2970.2462318,0.0001088,2]
[347356637,1735728632723,-1587.89459183,0.0001088,2]
[347356641,1735728637469,-4394.34582229,0.0001088,2]
[347356642,1735728637480,-333.76043195,0.0001088,2]
[347356643,1735728637500,-602.36438288,0.0001088,2]
[347356644,1735728637511,-18200.0000032,0.0001088,2]
[347356645,1735728637539,-3632.12254523,0.0001088,2]
[347356646,1735728637550,-1122.79079619,0.0001088,2]
[347356647,1735728637583,-1917.47,0.0001088,2]
[347356648,1735728637665,-7410.32969147,0.0001088,2]
[347356649,1735728637676,-9636.56305773,0.0001088,2]
[347356650,1735728637687,-95150.0,0.0001088,2]
[347356651,1735728637699,-22975.81624585,0.0001088,2]
[347356655,1735728638002,-47207.50000003,0.0001088,2]
[347356656,1735728638042,-3376.1014658,0.0001088,2]
[347356657,1735728638054,-1455.02450611,0.0001088,2]
[347356658,1735728638065,-25164.44905001,0.0001088,2]
[347356659,1735728638076,-623.64337499,0.0001088,2]
[347356660,1735728638087,-1736.808342,0.0001088,2]
[347356661,1735728638115,-34756.97629344,0.0001088,2]
[347356662,1735728639460,-884.99999998,0.0001088,2]
[347356663,1735728639472,-2177.34861967,0.0001088,2]
[347356664,1735728639627,-842.20452302,0.0001088,2]
[347356665,1735728639638,-33000.2508894,0.0001088,2]
[347356666,1735728639651,-3142.80000004,0.0001088,2]
[347356667,1735728639666,-4090.91701531,0.0001088,2]
[347356668,1735728639678,-48122.7723879,0.0001088,2]
[347356669,1735728639756,-1627.05411205,0.0001088,2]
[347356670,1735728639767,-870.1874432,0.0001088,2]
[347356671,1735728639779,-343.48470714,0.0001088,2]
[347356672,1735728639790,-340.60882801,0.0001088,2]
[347356684,1735728643137,-646.36638826,0.00010879,2]
[347356685,1735728643146,-939.81805026,0.0001088,2]
[347356686,1735728643213,-561.17,0.0001088,2]
[347356688,1735728645559,-349.72350075,0.0001088,2]
[347356689,1735728645571,-300.75301768,0.0001088,2]
[347356690,1735728645694,-3120.44707707,0.0001088,2]
[347356691,1735728645706,-3951.0,0.0001088,2]
[347356692,1735728645717,-7362.6797717,0.0001088,2]
[347356693,1735728645830,-1514.81476354,0.0001088,2]
[347356694,1735728645841,-2042.3655,0.0001088,2]
[347356697,1735728711072,1000.0,0.0001712,60]
[347356698,1735728943909,383.92,8.219e-05,2]
[347356699,1735729098395,500.0,9.479e-05,2]
[347356700,1735729307472,150.01012,0.0002,120]
[347356701,1735729308360,150.01012,0.0002,120]
[347356702,1735729308738,150.01012,0.0002,120]
[347356703,1735729309116,150.01012,0.0002,120]
[347356704,1735729309502,150.01012,0.0002,120]
[347356705,1735729309880,150.01012,0.0002,120]
[347356706,1735729310304,150.01012,0.0002,120]
[347356707,1735729310698,150.01012,0.0002,120]
[347356708,1735729311169,150.01012,0.0002,120]
[347356709,1735729311540,150.01012,0.0002,120]
[347356710,1735729316520,150.01012,0.0002,120]
[347356711,1735729317362,150.01012,0.0002,120]
[347356712,1735729317590,150.01012,0.0002,120]
[347356713,1735729317853,150.01012,0.0002,120]
[347356714,1735729318365,150.01012,0.0002,120]
[347356715,1735729318776,150.01012,0.0002,120]
[347356716,1735729319236,150.01012,0.0002,120]
[347356717,1735729319692,150.01012,0.0002,120]
[347356718,1735729325760,150.01012,0.0002,120]
[347356719,1735729326436,150.01012,0.0002,120]
[347356745,1735729831871,-1596.67041178,9.781e-05,7]
[347356746,1735729831924,-1500.00005,9.781e-05,7]
[347356747,1735729831972,-300.999999,9.781e-05,7]
[347356748,1735729832018,-27512.14150342,9.781e-05,7]
[347356749,1735729832027,-585.53830027,9.781e-05,7]
[347356750,1735729832038,-22414.79505157,9.781e-05,7]
[347356751,1735729832049,-429.5630163,9.781e-05,7]
[347356802,1735729837677,-6853.07281286,9.781e-05,7]
[347356803,1735729837687,-185.4,9.843e-05,2]
[347356804,1735729837696,-300.0,9.867e-05,2]
[347356805,1735729837705,-1000.0,9.896e-05,2]
[347356806,1735729837714,-466.69,9.935e-05,2]
[347356807,1735729837723,-235.09,9.941e-05,2]
[347356808,1735729837732,-250.0,9.961e-05,2]
[347356809,1735729837742,-609.01124714,9.962e-05,2]
[347356810,1735729837819,-375.69374648,9.962e-05,2]
[347356811,1735729837863,-515.29500638,9.962e-05,2]
[347356812,1735729837873,-250.0,9.979e-05,2]
[347356813,1735729837882,-158.054,0.0001045,2]
[347356814,1735729837892,-383.92,0.00010475,2]
[347356815,1735729837902,-293.0,0.00010548,2]
[347356816,1735729837912,-500.0,0.00010575,2]
[347356817,1735729837921,-1000.0,0.00010575,2]
[347356818,1735729837931,-499.73099362,0.0001078,2]
[347356819,1735729837943,-717.61540638,0.0001078,2]
[347356820,1735729837953,-1671.45,0.0001078,2]
[347356821,1735729837963,-157.99758214,0.0001078,2]
[347356822,1735729837972,-618.77095072,0.0001078,2]
[347356823,1735729837982,-166.0,0.00010784,2]
[347356824,1735729837992,-168.0,0.00010784,2]
[347356825,1735729838001,-166.0,0.00010802,2]
[347356827,1735729838011,-200.0,0.00010832,2]
[347356828,1735729838020,-157.99758213,0.0001085,2]
[347356829,1735729838030,-618.7709507,0.0001085,2]
[347356830,1735729838039,-490.83,0.00010857,2]
[347356831,1735729838048,-53.56752793,0.00010873,2]
[347356865,1735729839715,-446.43247207,0.00010873,2]
[347356866,1735729839724,-199.05860758,0.00010873,2]
[347356867,1735729839734,-500.0,0.00010873,2]
[347356868,1735729839743,-1151.73859663,0.00010878,2]
[347356869,1735729839755,-1048.72783516,0.00010878,2]
[347356870,1735729839788,-263.6740312,0.00010878,2]
[347356871,1735729839798,-1238.32798221,0.00010879,3]
[347356872,1735729839807,-726.66,0.00010879,2]
[347356873,1735729839817,-490.32,0.0001088,2]
[347356874,1735729839826,-3746874.71141401,0.0001088,2]
[347356875,1735729839835,-904.812,0.0001088,2]
[347356876,1735729839844,-730.921,0.0001088,2]
[347356877,1735729839853,-18138.0,0.000109,2]
[347356878,1735729839862,-162.27079328,0.000109,2]
[347356879,1735729839872,-1399.0,0.00010901,2]
[347356880,1735729839881,-157.99758213,0.0001092,2]
[347356881,1735729839891,-618.7709507,0.0001092,2]
[347356882,1735729839900,-666.0,0.00010957,2]
[347356883,1735729839909,-1862.858796,0.00010958,2]
[347356884,1735729839919,-549.62,0.00010958,2]
[347356885,1735729839929,-1491.411571,0.00010958,2]
[347356886,1735729839938,-588.39,0.00010958,2]
[347356887,1735729839948,-155.490194,0.00010958,2]
[347356888,1735729839958,-1081.93,0.00010958,2]
[347356889,1735729839967,-500.0,0.00010958,2]
[347356891,1735729839976,-678.11,0.00010958,2]
[347356893,1735729839985,-500.0,0.00010958,2]
[347356895,1735729839995,-725.37,0.00010958,2]
[347356897,1735729840004,-1016.57,0.00010958,2]
[347356899,1735729840013,-597.21,0.00010958,2]
[347356901,1735729840023,-500.0,0.00010958,2]
[347356903,1735729840032,-675.81,0.00010958,2]
[347356905,1735729840041,-927.55,0.00010958,2]
[347356907,1735729840050,-500.0,0.00010958,2]
[347356908,1735729840059,-1095.68,0.00010958,2]
[347356910,1735729840068,-500.0,0.00010958,2]
[347356912,1735729840078,-649.17,0.00010958,2]
[347356914,1735729840087,-708.64,0.00010958,2]
[347356916,1735729840096,-500.0,0.00010958,2]
[347356918,1735729840107,-500.0,0.00010958,2]
[347356920,1735729840116,-500.0,0.00010958,2]
[347356922,1735729840126,-1173.47,0.00010958,2]
[347356923,1735729840135,-500.0,0.00010958,2]
[347356924,1735729840144,-500.0,0.00010958,2]
[347356925,1735729840156,-715.02,0.00010958,2]
[347356926,1735729840169,-2864.02,0.00010958,2]
[347356927,1735729840179,-500.0,0.00010958,2]
[347356928,1735729840188,-500.0,0.00010958,2]
[347356929,1735729840199,-500.0,0.00010958,2]
[347356930,1735729840208,-500.0,0.00010958,2]
[347356931,1735729840217,-500.0,0.00010958,2]
[347356932,1735729840227,-2970.69,0.00010958,2]
[347356933,1735729840237,-500.0,0.00010958,2]
[347356934,1735729840246,-1894.68,0.00010958,2]
[347356935,1735729840255,-890.46,0.00010958,2]
[347356936,1735729840265,-1160.19,0.00010958,2]
[347356937,1735729840274,-500.0,0.00010958,2]
[347356938,1735729840284,-966.97,0.00010958,2]
[347356939,1735729840294,-2155.39,0.00010958,2]
[347356940,1735729840303,-558.61,0.00010958,2]
[347356941,1735729840313,-500.0,0.00010958,2]
[347356942,1735729840324,-500.0,0.00010958,2]
[347356943,1735729840334,-1780.27,0.00010958,2]
[347356944,1735729840344,-500.0,0.00010958,2]
[347356945,1735729840627,-500.0,0.00010958,2]
[347356946,1735729840642,-1377.5,0.00010958,2]
[347356947,1735729840653,-500.0,0.00010958,2]
[347356948,1735729840663,-489.31677513,0.00010958,2]
[347356949,1735729840672,-500.0,0.00010958,2]
[347356950,1735729840681,-1114.66,0.00010958,2]
[347356951,1735729840690,-896.06,0.00010958,2]
[347356952,1735729840699,-500.0,0.00010958,2]
[347356953,1735729840709,-500.0,0.00010958,2]
[347356954,1735729840718,-1249.44,0.00010958,2]
[347356955,1735729840727,-927.61,0.00010958,2]
[347356956,1735729840736,-500.0,0.00010958,2]
[347356957,1735729840744,-983.62,0.00010958,2]
[347356958,1735729840753,-755.5,0.00010958,2]
[347356959,1735729840762,-1146.7,0.00010958,2]
[347356960,1735729840771,-741.2,0.00010958,2]
[347356961,1735729840780,-500.0,0.00010958,2]
[347356962,1735729840790,-1298.73,0.00010958,2]
[347356963,1735729840799,-257.33644815,0.00010958,2]
[347356964,1735729840808,-500.0,0.00010958,2]
[347356965,1735729840817,-759.64,0.00010958,2]
[347356966,1735729840827,-1678.06,0.00010958,2]
[347356967,1735729840835,-500.0,0.00010958,2]
[347356968,1735729840844,-500.0,0.00010958,2]
[347356969,1735729840854,-1892.03,0.00010958,2]
[347356970,1735729840863,-627.64,0.00010958,2]
[347356971,1735729840872,-500.0,0.00010958,2]
[347356972,1735729840881,-674.77,0.00010958,2]
[347356973,1735729840890,-1570.85,0.00010958,2]
[347356974,1735729840899,-500.0,0.00010958,2]
[347356975,1735729840909,-1681.9,0.00010958,2]
[347356976,1735729840918,-1694.04,0.00010958,2]
[347356977,1735729840927,-500.0,0.00010958,2]
[347356978,1735729840936,-500.0,0.00010958,2]
[347356979,1735729840945,-866.29,0.00010958,2]
[347356980,1735729840954,-896.0,0.00010958,2]
[347356981,1735729840963,-500.0,0.00010958,2]
[347356982,1735729840973,-944.88,0.00010958,2]
[347356983,1735729840982,-564.82,0.00010958,2]
[347356984,1735729840991,-500.0,0.00010958,2]
[347356985,1735729841000,-1215.0,0.00010958,2]
[347356986,1735729841009,-500.0,0.00010958,2]
[347356987,1735729841018,-500.0,0.00010958,2]
[347356988,1735729841027,-500.0,0.00010958,2]
[347356989,1735729841035,-500.0,0.00010958,2]
[347356990,1735729841044,-1114.59,0.00010958,2]
[347356991,1735729841054,-500.0,0.00010958,2]
[347356992,1735729841063,-500.0,0.00010958,2]
[347356993,1735729841072,-3256.16,0.00010958,2]
[347356994,1735729841081,-500.0,0.00010958,2]
[347356995,1735729841091,-500.0,0.00010958,2]
[347356996,1735729841100,-500.0,0.00010958,2]
[347356997,1735729841110,-500.0,0.00010958,2]
[347356998,1735729841119,-500.0,0.00010958,2]
[347356999,1735729841129,-2188.57,0.00010958,2]
[347357000,1735729841138,-500.0,0.00010958,2]
[347357001,1735729841147,-500.0,0.00010958,2]
[347357002,1735729841159,-500.13568842,0.00010958,2]
[347357003,1735729841169,-521.83,0.00010958,2]
[347357004,1735729841179,-500.0,0.00010958,2]
[347357005,1735729841188,-500.0,0.00010958,2]
[347357006,1735729841199,-1506.78,0.00010958,2]
[347357007,1735729841208,-500.0,0.00010958,2]
[347357008,1735729841217,-500.0,0.00010958,2]
[347357009,1735729841227,-500.0,0.00010958,2]
[347357010,1735729841237,-1839.47,0.00010958,2]
[347357011,1735729841246,-500.0,0.00010958,2]
[347357012,1735729841255,-500.0,0.00010958,2]
[347357013,1735729841264,-502.12,0.00010958,2]
[347357014,1735729841274,-2336.11,0.00010958,2]
[347357015,1735729841283,-500.0,0.00010958,2]
[347357016,1735729841292,-500.0,0.00010958,2]
[347357017,1735729841301,-2248.98,0.00010958,2]
[347357018,1735729841310,-503.89,0.00010958,2]
[347357019,1735729841319,-572.64,0.00010958,2]
[347357020,1735729841328,-620.78,0.00010958,2]
[347357021,1735729841338,-2908.15,0.00010958,2]
[347357022,1735729841347,-500.0,0.00010958,2]
[347357023,1735729841356,-500.0,0.00010958,2]
[347357024,1735729841367,-2650.78,0.00010958,2]
[347357025,1735729841376,-500.0,0.00010958,2]
[347357026,1735729841385,-500.0,0.00010958,2]
[347357027,1735729841395,-1426.31,0.00010958,2]
[347357028,1735729841404,-703.78,0.00010958,2]
[347357029,1735729841413,-1441.33,0.00010958,2]
[347357030,1735729841423,-1480.96,0.00010958,2]
[347357031,1735729841433,-500.0,0.00010958,2]
[347357032,1735729841444,-500.0,0.00010958,2]
[347357033,1735729841454,-2096.32,0.00010958,2]
[347357034,1735729841463,-549.8,0.00010958,2]
[347357035,1735729841472,-819.5,0.00010958,2]
[347357036,1735729841481,-786.71,0.00010958,2]
[347357037,1735729841490,-2179.84,0.00010958,2]
[347357038,1735729841499,-854.47,0.00010958,2]
[347357039,1735729841509,-712.29,0.00010958,2]
[347357040,1735729841519,-500.0,0.00010958,2]
[347357041,1735729841528,-500.0,0.00010958,2]
[347357042,1735729841537,-3103.8,0.00010958,2]
[347357043,1735729841546,-500.0,0.00010958,2]
[347357044,1735729841555,-500.0,0.00010958,2]
[347357045,1735729841564,-539.56,0.00010958,2]
[347357046,1735729841574,-1700.6,0.00010958,2]
[347357047,1735729841583,-838.64,0.00010958,2]
[347357048,1735729841593,-1194.49,0.00010958,2]
[347357049,1735729841603,-798.33,0.00010958,2]
[347357050,1735729841612,-500.0,0.00010958,2]
[347357051,1735729841622,-1080.64,0.00010958,2]
[347357052,1735729841631,-1070.35,0.00010958,2]
[347357053,1735729841641,-500.0,0.00010958,2]
[347357054,1735729841651,-500.0,0.00010958,2]
[347357055,1735729841661,-2521.24,0.00010958,2]
[347357056,1735729841671,-696.41,0.00010958,2]
[347357057,1735729841680,-856.99,0.00010958,2]
[347357058,1735729841689,-779.45,0.00010958,2]
[347357059,1735729841699,-1335.54,0.00010958,2]
[347357060,1735729841708,-500.0,0.00010958,2]
[347357061,1735729841716,-500.0,0.00010958,2]
[347357062,1735729841726,-794.79,0.00010958,2]
[347357063,1735729841735,-583.90633784,0.00010958,2]
[347357064,1735729841744,-683.65,0.00010958,2]
[347357065,1735729841755,-1721.54,0.00010958,2]
[347357066,1735729841765,-1069.34,0.00010958,2]
[347357067,1735729841777,-500.0,0.00010958,2]
[347357068,1735729841787,-705.37,0.00010958,2]
[347357069,1735729841795,-1453.44,0.00010958,2]
[347357070,1735729841804,-534.29,0.00010958,2]
[347357071,1735729841813,-526.75,0.00010958,2]
[347357072,1735729841823,-576.53,0.00010958,2]
[347357073,1735729841832,-1628.6,0.00010958,2]
[347357074,1735729841843,-588.51,0.00010958,2]
[347357075,1735729841852,-703.1,0.00010958,2]
[347357076,1735729841861,-500.0,0.00010958,2]
[347357077,1735729841870,-1638.77,0.00010958,2]
[347357078,1735729841879,-1145.74,0.00010958,2]
[347357079,1735729841888,-1839.94,0.00010958,2]
[347357080,1735729841897,-634.38757686,0.00010958,2]
[347357081,1735729841907,-500.0,0.00010958,2]
[347357082,1735729841917,-500.0,0.00010958,2]
[347357083,1735729841926,-2273.78,0.00010958,2]
[347357084,1735729841937,-2817.4,0.00010958,2]
[347357085,1735729841947,-1580.56,0.00010958,2]
[347357086,1735729841958,-519.0,0.00010958,2]
[347357087,1735729841967,-738.11,0.00010958,2]
[347357088,1735729841977,-1506.45,0.00010958,2]
[347357089,1735729841987,-1050.22,0.00010958,2]
[347357090,1735729841996,-1597.07,0.00010958,2]
[347357091,1735729842006,-500.0,0.00010958,2]
[347357092,1735729842016,-2799.94,0.00010958,2]
[347357093,1735729842025,-500.0,0.00010958,2]
[347357094,1735729842034,-1946.59,0.00010958,2]
[347357095,1735729842045,-500.0,0.00010958,2]
[347357096,1735729842054,-500.0,0.00010958,2]
[347357097,1735729842063,-614.47,0.00010958,2]
[347357098,1735729842073,-2810.95,0.00010958,2]
[347357099,1735729842082,-500.0,0.00010958,2]
[347357100,1735729842091,-1661.06,0.00010958,2]
[347357101,1735729842101,-500.0,0.00010958,2]
[347357102,1735729842112,-1525.95,0.00010958,2]
[347357103,1735729842121,-500.0,0.00010958,2]
[347357104,1735729842131,-972.22,0.00010958,2]
[347357105,1735729842140,-905.17,0.00010958,2]
[347357106,1735729842149,-2053.03,0.00010958,2]
[347357107,1735729842161,-558.53,0.00010958,2]
[347357108,1735729842171,-1332.64,0.00010958,2]
[347357109,1735729842180,-9478.13,0.00010958,2]
[347357110,1735729842189,-500.0,0.00010958,2]
[347357111,1735729842199,-1062.68,0.00010958,2]
[347357112,1735729842208,-500.0,0.00010958,2]
[347357113,1735729842218,-2068.83,0.00010958,2]
[347357114,1735729842228,-942.41,0.00010958,2]
[347357115,1735729842237,-500.0,0.00010958,2]
[347357116,1735729842247,-579.76,0.00010958,2]
[347357117,1735729842256,-596.42,0.00010958,2]
[347357118,1735729842265,-500.0,0.00010958,2]
[347357119,1735729842274,-2777.95,0.00010958,2]
[347357120,1735729842283,-500.0,0.00010958,2]
[347357121,1735729842292,-982.9,0.00010958,2]
[347357122,1735729842302,-500.0,0.00010958,2]
[347357123,1735729842311,-1096.81,0.00010958,2]
[347357124,1735729842320,-2386.93,0.00010958,2]
[347357125,1735729842330,-1029.25,0.00010958,2]
[347357126,1735729842340,-2410.39,0.00010958,2]
[347357127,1735729842349,-500.0,0.00010958,2]
[347357128,1735729842359,-527.87,0.00010958,2]
[347357129,1735729842370,-3775.75,0.00010958,2]
[347357130,1735729842379,-1801.42,0.00010958,2]
[347357131,1735729842390,-814.78,0.00010958,2]
[347357132,1735729842401,-749.1,0.00010958,2]
[347357133,1735729842410,-1187.93,0.00010958,2]
[347357134,1735729842422,-8873.59,0.00010958,2]
[347357135,1735729842431,-1745.51,0.00010958,2]
[347357136,1735729842441,-2168.44,0.00010958,2]
[347357137,1735729842450,-1392.37,0.00010958,2]
[347357138,1735729842460,-785.92,0.00010958,2]
[347357139,1735729842469,-500.0,0.00010958,2]
[347357140,1735729842479,-2907.97,0.00010958,2]
[347357141,1735729842488,-500.0,0.00010958,2]
[347357142,1735729842498,-500.0,0.00010958,2]
[347357143,1735729842508,-605.88,0.00010958,2]
[347357144,1735729842519,-950.52,0.00010958,2]
[347357145,1735729842528,-950.09,0.00010958,2]
[347357146,1735729842538,-2109.08,0.00010958,2]
[347357147,1735729842547,-500.0,0.00010958,2]
[347357148,1735729842557,-500.0,0.00010958,2]
[347357149,1735729842572,-1924.75,0.00010958,2]
[347357151,1735729842592,-500.0,0.00010958,2]
[347357153,1735729842605,-1785.77,0.00010958,2]
[347357155,1735729842615,-1189.34,0.00010958,2]
[347357158,1735729842624,-500.0,0.00010958,2]
[347357160,1735729842633,-500.0,0.00010958,2]
[347357163,1735729842642,-1870.72,0.00010958,2]
[347357165,1735729842651,-1211.82,0.00010958,2]
[347357168,1735729842660,-500.0,0.00010958,2]
[347357170,1735729842669,-500.0,0.00010958,2]
[347357172,1735729842677,-500.0,0.00010958,2]
[347357174,1735729842686,-535.4,0.00010958,2]
[347357176,1735729842695,-4384.36,0.00010958,2]
[347357178,1735729842704,-4575.03,0.00010958,2]